fUSD/lending_fUSD_20240122
["ID","MTS","AMOUNT","RATE_DAILY","PERIOD"]
[312505052,1705935189568,-500.0,0.0005589,120]
[312505053,1705935189597,-500.0,0.0005589,120]
[312505054,1705935189627,-1144.19,0.0005589,120]
[312505055,1705935189660,-500.0,0.0005589,120]
[312505056,1705935189689,-500.0,0.0005589,120]
[312505057,1705935189721,-500.0,0.0005589,120]
[312505058,1705935189750,-500.0,0.0005589,120]
[312505059,1705935189779,-500.0,0.0005589,120]
[312505060,1705935189807,-500.0,0.0005589,120]
[312505061,1705935189835,-500.0,0.0005589,120]
[312505062,1705935189864,-559.06,0.0005589,120]
[312505063,1705935189892,-500.0,0.0005589,120]
[312505064,1705935189921,-500.0,0.0005589,120]
[312505065,1705935189950,-500.0,0.0005589,120]
[312505066,1705935189981,-500.0,0.0005589,120]
[312505067,1705935190012,-500.0,0.0005589,120]
[312505068,1705935190043,-500.0,0.0005589,120]
[312505069,1705935190073,-500.0,0.0005589,120]
[312505070,1705935190104,-500.0,0.0005589,120]
[312505071,1705935190135,-500.0,0.0005589,120]
[312505072,1705935190165,-500.0,0.0005589,120]
[312505073,1705935190197,-500.0,0.0005589,120]
[312505074,1705935190230,-500.0,0.0005589,120]
[312505075,1705935190261,-500.0,0.0005589,120]
[312505076,1705935190290,-626.59,0.0005589,120]
[312505077,1705935190321,-500.0,0.0005589,120]
[312505078,1705935190351,-551.71,0.0005589,120]
[312505079,1705935190382,-500.0,0.0005589,120]
[312505080,1705935190413,-500.0,0.0005589,120]
[312505081,1705935190443,-500.0,0.0005589,120]
[312505082,1705935190475,-500.0,0.0005589,120]
[312505083,1705935190507,-500.0,0.0005589,120]
[312505084,1705935190542,-500.0,0.0005589,120]
[312505085,1705935190578,-500.0,0.0005589,120]
[312505086,1705935190617,-500.0,0.0005589,120]
[312505087,1705935190655,-541.44488911,0.0005589,120]
[312505088,1705935190693,-500.0,0.0005589,120]
[312505089,1705935190729,-500.0,0.0005589,120]
[312505090,1705935190764,-711.06,0.0005589,120]
[312505091,1705935190796,-714.27,0.0005589,120]
[312505092,1705935190827,-918.11,0.0005589,120]
[312505093,1705935190862,-490.30031535,0.0005589,120]
[312505094,1705935190896,-500.0,0.0005589,120]
[312505095,1705935190932,-500.0,0.0005589,120]
[312505096,1705935190965,-687.84,0.0005589,120]
[312505097,1705935190998,-500.0,0.0005589,120]
[312505098,1705935191030,-500.0,0.0005589,120]
[312505099,1705935191062,-587.61,0.0005589,120]
[312505100,1705935191093,-500.0,0.0005589,120]
[312505101,1705935191129,-209.04743055,0.0005589,120]
[312505102,1705935191160,-500.0,0.0005589,120]
[312505103,1705935191189,-528.68929831,0.0005589,120]
[312505104,1705935191220,-882.35,0.0005589,120]
[312505105,1705935191248,-831.94,0.0005589,120]
[312505106,1705935191276,-369.55313522,0.0005589,120]
[312505107,1705935191308,-1066.83,0.0005589,120]
[312505108,1705935191336,-506.4,0.0005589,120]
[312505109,1705935191366,-500.0,0.0005589,120]
[312505110,1705935191394,-285.65272008,0.0005589,120]
[312505111,1705935191423,-500.0,0.0005589,120]
[312505112,1705935191455,-692.09,0.0005589,120]
[312505113,1705935191484,-500.0,0.0005589,120]
[312505114,1705935191513,-500.0,0.0005589,120]
[312505115,1705935191545,-500.0,0.0005589,120]
[312505116,1705935191574,-548.63,0.0005589,120]
[312505117,1705935191604,-500.0,0.0005589,120]
[312505118,1705935191635,-538.62176944,0.0005589,120]
[312505119,1705935191664,-726.93,0.0005589,120]
[312505120,1705935191694,-533.44,0.0005589,120]
[312505121,1705935191723,-801.5,0.0005589,120]
[312505122,1705935191752,-500.0,0.0005589,120]
[312505123,1705935191781,-500.0,0.0005589,120]
[312505124,1705935191811,-500.0,0.0005589,120]
[312505125,1705935191841,-500.0,0.0005589,120]
[312505126,1705935191871,-500.0,0.0005589,120]
[312505127,1705935192082,-500.0,0.0005589,120]
[312505128,1705935192119,-500.0,0.0005589,120]
[312505129,1705935192153,-500.0,0.0005589,120]
[312505130,1705935192187,-517.9,0.0005589,120]
[312505131,1705935192220,-500.0,0.0005589,120]
[312505132,1705935192252,-500.0,0.0005589,120]
[312505133,1705935192283,-500.0,0.0005589,120]
[312505134,1705935192315,-539.03,0.0005589,120]
[312505135,1705935192346,-500.0,0.0005589,120]
[312505136,1705935192379,-543.86813947,0.0005589,120]
[312505137,1705935192409,-247.08451426,0.0005589,120]
[312505138,1705935192441,-500.0,0.0005589,120]
[312505139,1705935192470,-500.0,0.0005589,120]
[312505140,1705935192499,-541.94,0.0005589,120]
[312505141,1705935192529,-500.0,0.0005589,120]
[312505142,1705935192560,-628.32,0.0005589,120]
[312505143,1705935192590,-500.0,0.0005589,120]
[312505144,1705935192621,-500.0,0.0005589,120]
[312505145,1705935192650,-1064.71,0.0005589,120]
[312505146,1705935192679,-500.0,0.0005589,120]
[312505147,1705935192710,-500.0,0.0005589,120]
[312505148,1705935192741,-500.0,0.0005589,120]
[312505149,1705935192775,-500.0,0.0005589,120]
[312505150,1705935192806,-500.0,0.0005589,120]
[312505151,1705935192837,-500.0,0.0005589,120]
[312505152,1705935192867,-500.0,0.0005589,120]
[312505153,1705935192896,-500.0,0.0005589,120]
[312505154,1705935192925,-500.0,0.0005589,120]
[312505155,1705935192956,-688.57,0.0005589,120]
[312505156,1705935192988,-515.35,0.0005589,120]
[312505157,1705935193020,-500.0,0.0005589,120]
[312505158,1705935193051,-500.0,0.0005589,120]
[312505159,1705935193082,-532.26,0.0005589,120]
[312505160,1705935193117,-429.58,0.0005589,120]
[312505161,1705935193148,-500.0,0.0005589,120]
[312505162,1705935193181,-500.0,0.0005589,120]
[312505163,1705935193215,-500.0,0.0005589,120]
[312505164,1705935193248,-511.93,0.0005589,120]
[312505165,1705935193278,-852.71,0.0005589,120]
[312505166,1705935193313,-500.0,0.0005589,120]
[312505167,1705935193346,-500.0,0.0005589,120]
[312505168,1705935193383,-563.70622086,0.0005589,120]
[312505169,1705935193413,-500.0,0.0005589,120]
[312505170,1705935193444,-500.0,0.0005589,120]
[312505171,1705935193475,-500.0,0.0005589,120]
[312505172,1705935193506,-500.0,0.0005589,120]
[312505173,1705935193535,-500.0,0.0005589,120]
[312505174,1705935193565,-749.91,0.0005589,120]
[312505175,1705935193595,-500.0,0.0005589,120]
[312505176,1705935193626,-1191.21,0.0005589,120]
[312505177,1705935193654,-500.0,0.0005589,120]
[312505178,1705935193684,-500.0,0.0005589,120]
[312505179,1705935193714,-865.73,0.0005589,120]
[312505180,1705935193745,-500.0,0.0005589,120]
[312505181,1705935193775,-706.74,0.0005589,120]
[312505182,1705935193806,-500.0,0.0005589,120]
[312505183,1705935193836,-500.0,0.0005589,120]
[312505184,1705935193867,-1450.12,0.0005589,120]
[312505185,1705935193897,-681.22,0.0005589,120]
[312505186,1705935193929,-500.0,0.0005589,120]
[312505187,1705935193964,-1062.77,0.0005589,120]
[312505188,1705935193998,-547.64,0.0005589,120]
[312505189,1705935194034,-756.07,0.0005589,120]
[312505190,1705935194070,-500.0,0.0005589,120]
[312505191,1705935194104,-520.16,0.0005589,120]
[312505192,1705935194143,-978.9,0.0005589,120]
[312505193,1705935194177,-1020.07,0.0005589,120]
[312505194,1705935194212,-1380.88,0.0005589,120]
[312505195,1705935194246,-500.0,0.0005589,120]
[312505196,1705935194279,-922.01,0.0005589,120]
[312505197,1705935194313,-570.7,0.0005589,120]
[312505198,1705935194351,-500.0,0.0005589,120]
[312505199,1705935194387,-680.6,0.0005589,120]
[312505200,1705935194423,-500.0,0.0005589,120]
[312505201,1705935194458,-1255.4,0.0005589,120]
[312505202,1705935194491,-500.0,0.0005589,120]
[312505203,1705935194524,-545.55703522,0.0005589,120]
[312505204,1705935194560,-1221.5,0.0005589,120]
[312505205,1705935194594,-500.0,0.0005589,120]
[312505206,1705935194630,-809.51,0.0005589,120]
[312505207,1705935194668,-500.0,0.0005589,120]
[312505208,1705935194705,-1170.01,0.0005589,120]
[312505209,1705935194738,-500.0,0.0005589,120]
[312505210,1705935194772,-1447.81,0.0005589,120]
[312505211,1705935194803,-500.0,0.0005589,120]
[312505212,1705935194835,-2684.03,0.0005589,120]
[312505213,1705935194867,-500.0,0.0005589,120]
[312505214,1705935194897,-1726.87,0.0005589,120]
[312505215,1705935194929,-970.29,0.0005589,120]
[312505216,1705935194962,-791.47,0.0005589,120]
[312505217,1705935194997,-709.57,0.0005589,120]
[312505218,1705935195031,-500.0,0.0005589,120]
[312505219,1705935195064,-500.0,0.0005589,120]
[312505220,1705935195098,-556.49,0.0005589,120]
[312505221,1705935195133,-500.0,0.0005589,120]
[312505222,1705935195167,-1387.83,0.0005589,120]
[312505223,1705935195202,-717.18,0.0005589,120]
[312505224,1705935195238,-685.25,0.0005589,120]
[312505225,1705935195277,-1397.88,0.0005589,120]
[312505226,1705935195311,-1037.49,0.0005589,120]
[312505227,1705935195346,-610.22,0.0005589,120]
[312505228,1705935195383,-937.59,0.0005589,120]
[312505229,1705935195418,-930.16,0.0005589,120]
[312505230,1705935195632,-500.0,0.0005589,120]
[312505231,1705935195669,-510.67,0.0005589,120]
[312505232,1705935195704,-721.94,0.0005589,120]
[312505233,1705935195741,-927.6,0.0005589,120]
[312505234,1705935195773,-500.0,0.0005589,120]
[312505235,1705935195807,-541.95515125,0.0005589,120]
[312505236,1705935195841,-1284.87,0.0005589,120]
[312505237,1705935195875,-658.41,0.0005589,120]
[312505238,1705935195910,-500.0,0.0005589,120]
[312505239,1705935195948,-500.0,0.0005589,120]
[312505240,1705935195991,-500.0,0.0005589,120]
[312505241,1705935196030,-500.0,0.0005589,120]
[312505242,1705935196065,-1324.43,0.0005589,120]
[312505243,1705935196101,-1074.78,0.0005589,120]
[312505244,1705935196137,-500.0,0.0005589,120]
[312505245,1705935196171,-854.08,0.0005589,120]
[312505246,1705935196206,-500.0,0.0005589,120]
[312505247,1705935196240,-388.349564,0.0005589,120]
[312505248,1705935196273,-669.07,0.0005589,120]
[312505249,1705935196310,-810.62,0.0005589,120]
[312505250,1705935196342,-1043.64,0.0005589,120]
[312505251,1705935196378,-1068.91,0.0005589,120]
[312505252,1705935196416,-500.0,0.0005589,120]
[312505253,1705935196452,-1264.76,0.0005589,120]
[312505254,1705935196489,-184.53709094,0.0005589,120]
[312505255,1705935196528,-537.28,0.0005589,120]
[312505256,1705935196571,-596.95,0.0005589,120]
[312505257,1705935196609,-500.0,0.0005589,120]
[312505258,1705935196656,-738.6,0.0005589,120]
[312505259,1705935196697,-660.61,0.0005589,120]
[312505260,1705935196735,-500.0,0.0005589,120]
[312505261,1705935196775,-500.0,0.0005589,120]
[312505262,1705935196811,-700.4,0.0005589,120]
[312505263,1705935196845,-500.0,0.0005589,120]
[312505264,1705935196879,-821.95,0.0005589,120]
[312505265,1705935196915,-559.6,0.0005589,120]
[312505266,1705935196954,-722.7,0.0005589,120]
[312505267,1705935196993,-648.78,0.0005589,120]
[312505268,1705935197030,-764.02,0.0005589,120]
[312505269,1705935197065,-500.0,0.0005589,120]
[312505270,1705935197100,-1066.38,0.0005589,120]
[312505271,1705935197136,-2325.98,0.0005589,120]
[312505272,1705935197172,-500.0,0.0005589,120]
[312505273,1705935197205,-603.50786023,0.0005589,120]
[312505274,1705935197243,-1073.56,0.0005589,120]
[312505275,1705935197276,-500.0,0.0005589,120]
[312505276,1705935197308,-500.0,0.0005589,120]
[312505277,1705935197341,-972.0,0.0005589,120]
[312505278,1705935197375,-1026.23,0.0005589,120]
[312505279,1705935197409,-532.36,0.0005589,120]
[312505280,1705935197442,-500.0,0.0005589,120]
[312505281,1705935197475,-1793.95,0.0005589,120]
[312505282,1705935197512,-500.0,0.0005589,120]
[312505283,1705935197550,-322.46160134,0.0005589,120]
[312505284,1705935197585,-500.0,0.0005589,120]
[312505285,1705935197621,-500.0,0.0005589,120]
[312505286,1705935197656,-960.21,0.0005589,120]
[312505287,1705935197689,-500.0,0.0005589,120]
[312505288,1705935197723,-1245.11,0.0005589,120]
[312505289,1705935197755,-500.0,0.0005589,120]
[312505290,1705935197788,-500.0,0.0005589,120]
[312505291,1705935197820,-500.0,0.0005589,120]
[312505292,1705935197852,-1202.84,0.0005589,120]
[312505293,1705935197884,-500.0,0.0005589,120]
[312505294,1705935197916,-674.26,0.0005589,120]
[312505295,1705935197948,-1089.12,0.0005589,120]
[312505296,1705935197980,-500.0,0.0005589,120]
[312505297,1705935198012,-534.33656066,0.0005589,120]
[312505298,1705935198046,-1148.71,0.0005589,120]
[312505299,1705935198079,-1121.58,0.0005589,120]
[312505300,1705935198114,-500.0,0.0005589,120]
[312505301,1705935198148,-500.0,0.0005589,120]
[312505302,1705935198179,-782.17,0.0005589,120]
[312505303,1705935198211,-1269.81,0.0005589,120]
[312505304,1705935198243,-500.0,0.0005589,120]
[312505305,1705935198274,-1163.79,0.0005589,120]
[312505306,1705935198320,-500.0,0.0005589,120]
[312505307,1705935198354,-755.55,0.0005589,120]
[312505308,1705935198388,-590.73,0.0005589,120]
[312505309,1705935198422,-500.0,0.0005589,120]
[312505310,1705935198456,-500.0,0.0005589,120]
[312505311,1705935198489,-653.94,0.0005589,120]
[312505312,1705935198525,-500.0,0.0005589,120]
[312505313,1705935198557,-1082.1,0.0005589,120]
[312505314,1705935198590,-1119.29,0.0005589,120]
[312505315,1705935198625,-884.87,0.0005589,120]
[312505316,1705935198657,-1021.29,0.0005589,120]
[312505317,1705935198689,-590.44,0.0005589,120]
[312505318,1705935198720,-500.0,0.0005589,120]
[312505319,1705935198752,-500.0,0.0005589,120]
[312505320,1705935198783,-557.86,0.0005589,120]
[312505321,1705935198815,-500.0,0.0005589,120]
[312505322,1705935198848,-922.84,0.0005589,120]
[312505323,1705935198883,-854.16,0.0005589,120]
[312505324,1705935198915,-500.0,0.0005589,120]
[312505325,1705935198948,-1360.93,0.0005589,120]
[312505326,1705935198982,-500.0,0.0005589,120]
[312505327,1705935199017,-612.83,0.0005589,120]
[312505328,1705935199051,-500.0,0.0005589,120]
[312505329,1705935199085,-236.22515444,0.0005589,120]
[312505330,1705935199119,-763.7,0.0005589,120]
[312505331,1705935199152,-862.53,0.0005589,120]
[312505332,1705935199186,-709.99,0.0005589,120]
[312505333,1705935199220,-716.16,0.0005589,120]
[312505334,1705935199484,-541.18904749,0.0005589,120]
[312505335,1705935199520,-743.65,0.0005589,120]
[312505336,1705935199555,-500.0,0.0005589,120]
[312505337,1705935199590,-500.0,0.0005589,120]
[312505338,1705935199623,-501.89,0.0005589,120]
[312505339,1705935199656,-765.86,0.0005589,120]
[312505340,1705935199691,-1960.91,0.0005589,120]
[312505341,1705935199725,-500.0,0.0005589,120]
[312505342,1705935199758,-619.298255,0.0005589,120]
[312505343,1705935199790,-864.85,0.0005589,120]
[312505344,1705935199823,-500.0,0.0005589,120]
[312505345,1705935199855,-500.0,0.0005589,120]
[312505346,1705935199887,-895.93,0.0005589,120]
[312505347,1705935199921,-375.02,0.0005589,120]
[312505348,1705935199954,-652.75,0.0005589,120]
[312505349,1705935199986,-500.0,0.0005589,120]
[312505350,1705935200018,-718.71,0.0005589,120]
[312505351,1705935200051,-1017.75,0.0005589,120]
[312505352,1705935200084,-500.0,0.0005589,120]
[312505353,1705935200118,-500.0,0.0005589,120]
[312505354,1705935200152,-500.0,0.0005589,120]
[312505355,1705935200187,-950.95,0.0005589,120]
[312505356,1705935200222,-580.95041312,0.0005589,120]
[312505357,1705935200255,-1166.26,0.0005589,120]
[312505358,1705935200287,-500.0,0.0005589,120]
[312505359,1705935200319,-1163.88,0.0005589,120]
[312505360,1705935200350,-706.58,0.0005589,120]
[312505361,1705935200383,-318.20698159,0.0005589,120]
[312505362,1705935200417,-500.0,0.0005589,120]
[312505363,1705935200452,-257.74344124,0.0005589,120]
[312505364,1705935200484,-500.0,0.0005589,120]
[312505365,1705935200521,-775.78,0.0005589,120]
[312505366,1705935200556,-1841.93,0.0005589,120]
[312505367,1705935200589,-500.0,0.0005589,120]
[312505368,1705935200622,-500.0,0.0005589,120]
[312505369,1705935200654,-604.25,0.0005589,120]
[312505370,1705935200687,-500.0,0.0005589,120]
[312505371,1705935200719,-500.0,0.0005589,120]
[312505372,1705935200752,-744.8,0.0005589,120]
[312505373,1705935200783,-500.0,0.0005589,120]
[312505374,1705935200815,-803.23,0.0005589,120]
[312505375,1705935200849,-500.0,0.0005589,120]
[312505376,1705935200883,-1391.49,0.0005589,120]
[312505377,1705935200920,-500.0,0.0005589,120]
[312505378,1705935200955,-743.79,0.0005589,120]
[312505379,1705935200990,-758.95,0.0005589,120]
[312505380,1705935201028,-298.94358671,0.0005589,120]
[312505381,1705935201064,-805.81,0.0005589,120]
[312505382,1705935201099,-500.0,0.0005589,120]
[312505383,1705935201134,-533.00224319,0.0005589,120]
[312505384,1705935201168,-575.63,0.0005589,120]
[312505385,1705935201203,-500.0,0.0005589,120]
[312505386,1705935201238,-869.66,0.0005589,120]
[312505387,1705935201273,-500.0,0.0005589,120]
[312505388,1705935201306,-522.38460518,0.0005589,120]
[312505389,1705935201339,-500.0,0.0005589,120]
[312505390,1705935201375,-500.0,0.0005589,120]
[312505391,1705935201407,-907.16,0.0005589,120]
[312505392,1705935201438,-619.23,0.0005589,120]
[312505393,1705935201471,-789.34,0.0005589,120]
[312505394,1705935201503,-1452.65,0.0005589,120]
[312505395,1705935201533,-500.0,0.0005589,120]
[312505396,1705935201564,-696.15,0.0005589,120]
[312505397,1705935201595,-500.0,0.0005589,120]
[312505398,1705935201626,-593.79,0.0005589,120]
[312505399,1705935201657,-500.0,0.0005589,120]
[312505400,1705935201688,-500.0,0.0005589,120]
[312505401,1705935201719,-1334.13,0.0005589,120]
[312505402,1705935201750,-500.0,0.0005589,120]
[312505403,1705935201781,-836.62,0.0005589,120]
[312505404,1705935201813,-837.72,0.0005589,120]
[312505405,1705935201843,-623.18,0.0005589,120]
[312505406,1705935201874,-1323.21,0.0005589,120]
[312505407,1705935201903,-500.0,0.0005589,120]
[312505408,1705935201934,-557.03,0.0005589,120]
[312505409,1705935201967,-609.57,0.0005589,120]
[312505410,1705935202001,-951.02,0.0005589,120]
[312505411,1705935202034,-1742.89,0.0005589,120]
[312505412,1705935202067,-500.0,0.0005589,120]
[312505413,1705935202098,-500.0,0.0005589,120]
[312505414,1705935202131,-500.0,0.0005589,120]
[312505415,1705935202164,-762.89,0.0005589,120]
[312505416,1705935202198,-650.96,0.0005589,120]
[312505417,1705935202231,-500.0,0.0005589,120]
[312505418,1705935202264,-659.39,0.0005589,120]
[312505419,1705935202296,-500.0,0.0005589,120]
[312505420,1705935202331,-500.0,0.0005589,120]
[312505421,1705935202363,-500.0,0.0005589,120]
[312505422,1705935202395,-651.75,0.0005589,120]
[312505423,1705935202425,-500.0,0.0005589,120]
[312505424,1705935202456,-500.0,0.0005589,120]
[312505425,1705935202487,-852.44,0.0005589,120]
[312505426,1705935202519,-500.0,0.0005589,120]
[312505427,1705935202550,-500.0,0.0005589,120]
[312505428,1705935202582,-500.0,0.0005589,120]
[312505429,1705935202613,-500.0,0.0005589,120]
[312505430,1705935202645,-500.0,0.0005589,120]
[312505431,1705935202676,-500.0,0.0005589,120]
[312505432,1705935202708,-1607.72,0.0005589,120]
[312505433,1705935202738,-488.70449719,0.0005589,120]
[312505434,1705935202768,-1788.51,0.0005589,120]
[312505435,1705935202799,-500.0,0.0005589,120]
[312505436,1705935202830,-669.85,0.0005589,120]
[312505437,1705935202861,-744.04,0.0005589,120]
[312505438,1705935203071,-500.0,0.0005589,120]
[312505439,1705935203107,-645.14,0.0005589,120]
[312505440,1705935203142,-608.8,0.0005589,120]
[312505441,1705935203175,-500.0,0.0005589,120]
[312505442,1705935203209,-702.16,0.0005589,120]
[312505443,1705935203242,-300.0,0.0005589,120]
[312505444,1705935203274,-559.87,0.0005589,120]
[312505445,1705935203306,-500.0,0.0005589,120]
[312505446,1705935203340,-500.0,0.0005589,120]
[312505447,1705935203373,-1326.85,0.0005589,120]
[312505448,1705935203404,-500.0,0.0005589,120]
[312505449,1705935203436,-1404.36,0.0005589,120]
[312505450,1705935203467,-1490.02,0.0005589,120]
[312505451,1705935203498,-521.48190529,0.0005589,120]
[312505452,1705935203529,-500.0,0.0005589,120]
[312505453,1705935203561,-500.0,0.0005589,120]
[312505454,1705935203594,-500.0,0.0005589,120]
[312505455,1705935203628,-1273.58,0.0005589,120]
[312505456,1705935203661,-500.0,0.0005589,120]
[312505457,1705935203695,-500.0,0.0005589,120]
[312505458,1705935203727,-500.0,0.0005589,120]
[312505459,1705935203760,-1577.88,0.0005589,120]
[312505460,1705935203791,-850.44,0.0005589,120]
[312505461,1705935203824,-500.0,0.0005589,120]
[312505462,1705935203856,-665.34,0.0005589,120]
[312505463,1705935203889,-500.0,0.0005589,120]
[312505464,1705935203922,-836.88,0.0005589,120]
[312505465,1705935203958,-500.0,0.0005589,120]
[312505466,1705935203991,-1144.66,0.0005589,120]
[312505467,1705935204025,-500.0,0.0005589,120]
[312505468,1705935204060,-649.5,0.0005589,120]
[312505469,1705935204096,-500.0,0.0005589,120]
[312505470,1705935204133,-1273.46,0.0005589,120]
[312505471,1705935204168,-991.3,0.0005589,120]
[312505472,1705935204204,-548.05928971,0.0005589,120]
[312505473,1705935204237,-500.0,0.0005589,120]
[312505474,1705935204269,-500.0,0.0005589,120]
[312505475,1705935204301,-1047.97,0.0005589,120]
[312505476,1705935204340,-500.0,0.0005589,120]
[312505477,1705935204376,-500.0,0.0005589,120]
[312505478,1705935204408,-500.0,0.0005589,120]
[312505479,1705935204443,-500.0,0.0005589,120]
[312505480,1705935204479,-600.2,0.0005589,120]
[312505481,1705935204512,-500.0,0.0005589,120]
[312505482,1705935204546,-500.0,0.0005589,120]
[312505483,1705935204578,-754.61,0.0005589,120]
[312505484,1705935204609,-852.62,0.0005589,120]
[312505485,1705935204643,-836.94,0.0005589,120]
[312505486,1705935204677,-1180.08,0.0005589,120]
[312505487,1705935204710,-500.0,0.0005589,120]
[312505488,1705935204742,-1099.97,0.0005589,120]
[312505489,1705935204774,-500.0,0.0005589,120]
[312505490,1705935204806,-500.0,0.0005589,120]
[312505491,1705935204839,-500.0,0.0005589,120]
[312505492,1705935204870,-500.0,0.0005589,120]
[312505493,1705935204903,-3067.18,0.0005589,120]
[312505494,1705935204938,-857.36,0.0005589,120]
[312505495,1705935204973,-1899.47,0.0005589,120]
[312505496,1705935205008,-500.0,0.0005589,120]
[312505497,1705935205044,-597.17,0.0005589,120]
[312505498,1705935205083,-1527.68,0.0005589,120]
[312505499,1705935205126,-1800.8,0.0005589,120]
[312505500,1705935205164,-806.43,0.0005589,120]
[312505501,1705935205202,-500.0,0.0005589,120]
[312505502,1705935205240,-2110.23,0.0005589,120]
[312505503,1705935205276,-500.0,0.0005589,120]
[312505504,1705935205313,-500.0,0.0005589,120]
[312505505,1705935205351,-1844.2,0.0005589,120]
[312505506,1705935205385,-500.0,0.0005589,120]
[312505507,1705935205419,-500.0,0.0005589,120]
[312505508,1705935205452,-1034.47,0.0005589,120]
[312505509,1705935205487,-552.99,0.0005589,120]
[312505510,1705935205521,-500.0,0.0005589,120]
[312505511,1705935205551,-236.20904238,0.0005589,120]
[312505512,1705935205583,-1707.75,0.0005589,120]
[312505513,1705935205616,-666.0,0.0005589,120]
[312505514,1705935205652,-1081.22,0.0005589,120]
[312505515,1705935205687,-684.76,0.0005589,120]
[312505516,1705935205721,-500.0,0.0005589,120]
[312505517,1705935205755,-1129.13,0.0005589,120]
[312505518,1705935205787,-500.0,0.0005589,120]
[312505519,1705935205819,-1780.29,0.0005589,120]
[312505520,1705935205850,-599.85,0.0005589,120]
[312505521,1705935205883,-932.99,0.0005589,120]
[312505522,1705935205915,-500.0,0.0005589,120]
[312505523,1705935205950,-2637.9,0.0005589,120]
[312505524,1705935205985,-500.0,0.0005589,120]
[312505525,1705935206019,-1394.47,0.0005589,120]
[312505526,1705935206052,-756.66,0.0005589,120]
[312505527,1705935206084,-569.47,0.0005589,120]
[312505528,1705935206119,-459.55606285,0.0005589,120]
[312505529,1705935206153,-500.0,0.0005589,120]
[312505530,1705935206187,-591.22,0.0005589,120]
[312505531,1705935206221,-1651.7,0.0005589,120]
[312505532,1705935206254,-500.0,0.0005589,120]
[312505533,1705935206287,-1013.83,0.0005589,120]
[312505534,1705935206319,-970.35,0.0005589,120]
[312505535,1705935206355,-1849.77,0.0005589,120]
[312505536,1705935206392,-500.0,0.0005589,120]
[312505537,1705935206430,-500.0,0.0005589,120]
[312505538,1705935206467,-506.16,0.0005589,120]
[312505539,1705935206502,-920.91,0.0005589,120]
[312505540,1705935206537,-752.54,0.0005589,120]
[312505541,1705935206570,-653.54,0.0005589,120]
[312505542,1705935206779,-500.0,0.0005589,120]
[312505543,1705935206817,-1751.16,0.0005589,120]
[312505544,1705935206854,-1880.56,0.0005589,120]
[312505545,1705935206890,-652.01,0.0005589,120]
[312505546,1705935206925,-1782.45,0.0005589,120]
[312505547,1705935206961,-650.78,0.0005589,120]
[312505548,1705935206996,-631.92,0.0005589,120]
[312505549,1705935207030,-752.76,0.0005589,120]
[312505550,1705935207063,-500.0,0.0005589,120]
[312505551,1705935207096,-2270.34,0.0005589,120]